bitfinex-derivatives/quotes_SOLF0:USTF0_20230701
["timestamp","ask_amount","ask_price","bid_price","bid_amount"]
[1688208195307,43.34,18.344,18.329,200.0]
[1688208195508,9.05580395,18.343,18.329,200.0]
[1688208196103,0.86621676,18.338,18.334,0.8526158]
[1688208198514,43.59,18.349,18.337,200.0]
[1688208198711,9.05660893,18.348,18.339,200.0]
[1688208198908,43.34,18.354,18.339,200.0]
[1688208199112,9.057283,18.353,18.339,200.0]
[1688208199720,0.18495866,18.348,18.344,0.76730951]
[1688208201417,43.77495866,18.348,18.331,24.07777178]
[1688208201724,9.057283,18.347,18.329,200.0]
[1688208202515,0.80844972,18.34,18.336,0.85452044]
[1688208204120,43.34,18.354,18.339,200.0]
[1688208204316,9.05634505,18.353,18.339,200.0]
[1688208205116,0.14381844,18.348,18.344,0.87823644]
[1688208205914,0.14381844,18.348,18.329,200.0]
[1688208206119,9.05634505,18.353,18.329,200.0]
[1688208206315,43.61,18.349,18.329,200.0]
[1688208206524,9.05634505,18.348,18.329,200.0]
[1688208207024,0.81764377,18.34,18.337,0.7697066]
[1688208207220,0.84899243,18.34,18.337,0.7697066]
[1688208207828,43.61,18.349,18.339,200.0]
[1688208208129,9.05652998,18.348,18.339,200.0]
[1688208208328,43.34,18.354,18.33,200.0]
[1688208208926,0.17365681,18.344,18.34,200.79374578]
[1688208209125,0.17365681,18.344,18.34,200.81740636]
[1688208210136,0.17365681,18.344,18.34,0.81740636]
[1688208210327,0.17365681,18.344,18.34,200.81740636]
[1688208214027,43.34,18.354,18.34,200.0]
[1688208215229,43.34,18.354,18.345,0.88173758]
[1688208218627,43.34,18.354,18.346,126.97012094]
[1688208220337,43.34,18.354,18.345,0.88173758]
[1688208220724,43.34,18.354,18.346,126.97747727]
[1688208220932,49.03,18.351,18.346,126.97747727]
[1688208221128,49.03,18.351,18.347,0.78845314]
[1688208222538,48.81,18.355,18.347,0.78845314]
[1688208222732,48.81,18.355,18.349,0.77663899]
[1688208231149,49.03,18.35,18.349,0.77663899]
[1688208231351,49.03,18.35,18.348,0.78677239]
[1688208231539,49.03,18.35,18.347,0.86356627]
[1688208231739,49.03,18.35,18.347,0.74974399]
[1688208234240,48.62,18.354,18.347,0.74974399]
[1688208234446,48.81,18.357,18.349,0.88709908]
[1688208234646,9.06209402,18.356,18.351,0.74511783]
[1688208234847,9.06209402,18.356,18.352,0.75781816]
[1688208235043,9.06209402,18.356,18.352,0.76227588]
[1688208238957,58.5652,18.362,18.353,126.93914973]
[1688208240453,49.03,18.367,18.352,0.76227588]
[1688208240648,9.06617474,18.366,18.358,0.75380323]
[1688208241657,49.03,18.367,18.358,0.75380323]
[1688208241853,49.03,18.367,18.361,200.0]
[1688208242059,49.03,18.367,18.362,0.88644008]
[1688208242568,49.03,18.371,18.362,0.88644008]
[1688208242758,9.06967,18.37,18.365,0.76891193]
[1688208243162,48.81,18.373,18.365,0.76891193]
[1688208243365,9.06970456,18.372,18.365,0.76891193]
[1688208250662,26.85632333,18.378,18.361,200.0]
[1688208250962,9.06967641,18.377,18.371,200.0]
[1688208251166,9.06967641,18.377,18.372,0.77277305]
[1688208251369,9.06967641,18.376,18.372,0.77277305]
[1688208251563,48.89,18.38,18.372,0.77277305]
[1688208251770,8.4130045,18.379,18.372,0.77277305]
[1688208254768,8.4130045,18.378,18.372,0.77277305]
[1688208254968,8.4130045,18.377,18.372,0.77277305]
[1688208255169,1e-08,18.376,18.372,0.77277305]
[1688208255368,56.07280001,18.383,18.372,0.74015412]
[1688208255572,56.07280001,18.383,18.376,0.88553464]
[1688208255573,1e-08,18.382,18.376,0.88553464]
[1688208256262,1e-08,18.386,18.376,0.88553464]
[1688208257367,48.81,18.384,18.376,0.88553464]
[1688208257573,1e-08,18.383,18.376,0.88553464]
[1688208258878,48.89,18.381,18.376,0.88553464]
[1688208259177,1e-08,18.38,18.376,0.88553464]
[1688208260772,1e-08,18.383,18.376,0.88553464]
[1688208261375,48.62,18.382,18.376,0.88553464]
[1688208261567,1e-08,18.381,18.376,0.88553464]
[1688208266371,1e-08,18.383,18.376,0.88553464]
[1688208270078,1e-08,18.383,18.381,200.0]
[1688208270275,56.0728,18.398,18.381,200.0]
[1688208270276,7.74105939,18.389,18.381,200.0]
[1688208270484,7.74105939,18.388,18.383,0.8958937]
[1688208270777,48.89,18.393,18.383,0.8958937]
[1688208270778,7.74105939,18.387,18.383,0.8958937]
[1688208270980,48.89,18.393,18.383,0.8958937]
[1688208271173,7.74050724,18.392,18.383,0.8958937]
[1688208271972,7.74050724,18.391,18.383,0.8958937]
[1688208272173,7.74050724,18.39,18.385,0.84363053]
[1688208272378,7.74050724,18.389,18.385,0.84363053]
[1688208272584,7.74050724,18.388,18.385,0.84363053]
[1688208272880,7.74050724,18.387,18.385,0.84363053]
[1688208273074,7.74050724,18.386,18.385,0.84363053]
[1688208274482,48.62,18.396,18.385,0.84363053]
[1688208274677,7.17616603,18.395,18.385,0.84363053]
[1688208275580,7.17616603,18.395,18.392,200.0]
[1688208275780,7.17616603,18.395,18.392,200.83405823]
[1688208282181,7.17616603,18.394,18.392,200.83405823]
[1688208282381,7.17616603,18.393,18.392,200.83405823]
[1688208282777,48.62,18.399,18.392,200.83405823]
[1688208282975,6.55780165,18.398,18.392,200.83405823]
[1688208283679,6.55780165,18.398,18.392,0.83405823]
[1688208283990,48.81,18.393,18.382,200.0]
[1688208284185,48.62,18.386,18.382,200.0]
[1688208284384,6.55780165,18.385,18.372,200.0]
[1688208284788,0.82217571,18.38,18.377,0.76314961]
[1688208287489,118.34,18.378,18.372,200.0]
[1688208287696,119.44,18.375,18.372,200.0]
[1688208287890,119.44,18.378,18.372,200.0]
[1688208288696,0.85169465,18.377,18.373,0.85007197]
[1688208292497,504.56374651,18.388,18.373,0.85007197]
[1688208292498,119.44,18.385,18.373,0.85007197]
[1688208292693,6.00512918,18.384,18.372,319.44]
[1688208292891,119.44,18.382,18.372,200.0]
[1688208293090,6.00512918,18.381,18.372,200.0]
[1688208293290,0.74039543,18.378,18.375,0.80583604]
[1688208294305,119.44,18.385,18.375,0.80583604]
[1688208294496,6.0053106,18.384,18.372,319.44]
[1688208294891,118.62,18.388,18.382,200.0]
[1688208295087,6.01225417,18.387,18.383,0.82170732]
[1688208295394,118.62,18.388,18.383,0.82170732]
[1688208295790,6.01237086,18.387,18.383,0.82170732]
[1688208296195,119.44,18.385,18.372,319.44]
[1688208297099,6.01140128,18.384,18.372,319.44]
[1688208297409,0.80795307,18.38,18.376,0.89382779]
[1688208301402,119.44,18.379,18.372,200.0]
[1688208301604,119.44,18.379,18.366,119.44]
[1688208301803,119.44,18.379,18.372,200.0]
[1688208302203,0.87981997,18.377,18.374,0.85861976]
[1688208302500,0.87981997,18.377,18.366,119.44]
[1688208302501,119.44,18.375,18.362,200.0]
[1688208302699,478.14,18.379,18.362,200.0]
[1688208302700,119.44,18.371,18.362,200.0]
[1688208303200,119.44,18.367,18.354,26.99405566]
[1688208303400,0.80523939,18.362,18.352,200.0]
[1688208303701,118.77,18.353,18.342,200.0]
[1688208303907,119.44,18.35,18.342,200.0]
[1688208304097,119.44,18.348,18.342,200.0]
[1688208304497,0.89138271,18.347,18.343,0.7818731]
[1688208304805,0.75098009,18.347,18.343,0.78168711]
[1688208305002,119.44,18.346,18.333,200.0]
[1688208305195,119.44,18.351,18.343,40.32518087]
[1688208305607,118.34,18.348,18.343,40.32518087]
[1688208305811,119.44,18.345,18.343,40.32518087]
[1688208306306,0.86467347,18.346,18.343,40.32518087]
[1688208308201,0.86467347,18.346,18.344,126.9610609]
[1688208310703,118.62,18.345,18.344,126.9610609]
[1688208310904,118.62,18.345,18.343,40.32518087]
[1688208311502,118.62,18.345,18.342,0.81700543]
[1688208311807,597.86,18.342,18.333,40.32518087]
[1688208312107,118.77,18.336,18.334,127.01564626]
[1688208314204,118.77,18.336,18.333,0.45827308]
[1688208314408,119.44,18.334,18.333,0.45827308]
[1688208317907,119.44,18.334,18.323,40.32518087]
[1688208318114,119.44,18.331,18.323,40.32518087]
[1688208319013,0.77400181,18.329,18.323,40.32518087]
[1688208321812,119.11400181,18.329,18.323,40.32518087]
[1688208322917,118.77,18.327,18.323,40.32518087]
[1688208324214,118.62,18.324,18.313,40.32518087]
[1688208324516,118.62,18.319,18.313,40.32518087]
[1688208326316,0.77381924,18.32,18.313,40.32518087]
[1688208328012,119.44,18.319,18.313,40.32518087]
[1688208336627,120.21381924,18.32,18.313,40.32518087]
[1688208338425,120.21381924,18.32,18.307,194.25376247]
[1688208338623,119.44,18.32,18.313,40.32518087]
[1688208338823,0.79443428,18.315,18.313,40.32518087]
[1688208339128,119.44,18.32,18.315,0.01530185]
[1688208339425,119.44,18.323,18.315,0.01530185]
[1688208340119,0.89911532,18.321,18.317,0.79681609]
[1688208340315,119.44,18.32,18.317,0.79681609]
[1688208340720,0.89911532,18.321,18.317,0.79681609]
[1688208340721,119.44,18.318,18.317,0.79681609]
[1688208342726,120.33911532,18.321,18.317,0.79681609]
[1688208344829,119.44,18.319,18.317,0.79681609]
[1688208363045,0.89911532,18.321,18.317,0.79681609]
[1688208363447,57.2378,18.333,18.32,40.32518087]
[1688208363745,119.44,18.332,18.325,40.32518087]
[1688208364044,119.44,18.33,18.325,40.32518087]
[1688208364345,119.44,18.326,18.325,40.32518087]
[1688208369346,0.82895948,18.327,18.325,40.32518087]
[1688208369546,119.44,18.329,18.325,40.32518087]
[1688208369742,118.34,18.332,18.325,40.32518087]
[1688208370151,59.4656,18.339,18.325,40.32518087]
[1688208370350,119.44,18.334,18.325,40.32518087]
[1688208370550,0.75828578,18.331,18.328,0.77363616]
[1688208372046,109.16,18.33,18.328,0.77363616]
[1688208372251,109.16,18.329,18.316,54.8635]
[1688208372453,109.16,18.321,18.315,40.32518087]
[1688208372648,108.37,18.318,18.315,40.32518087]
[1688208372850,109.16,18.316,18.315,40.32518087]
[1688208373049,108.37,18.318,18.315,40.32518087]
[1688208373249,109.16307853,18.318,18.315,40.32518087]
[1688208373554,109.16307853,18.318,18.315,41.07682532]
[1688208373750,109.16,18.316,18.315,41.07682532]
[1688208373951,109.16,18.316,18.315,1e-08]
[1688208374350,109.16,18.316,18.306,10.02958846]
[1688208374655,109.16,18.307,18.295,109.16]
[1688208374845,109.16,18.307,18.296,10.03435283]
[1688208375350,109.16,18.305,18.296,10.03435283]
[1688208375555,0.77459459,18.302,18.299,0.82706745]
[1688208375749,0.77459459,18.302,18.3,10.03435283]
[1688208379549,120.44,18.308,18.3,10.03435283]
[1688208379952,120.44,18.308,18.301,10.03435283]
[1688208380149,120.44,18.308,18.295,146.78823801]
[1688208380349,120.44,18.308,18.296,10.03382191]
[1688208380652,0.7895235,18.304,18.3,0.78859709]
[1688208380957,0.7895235,18.304,18.301,10.03382191]
[1688208384448,121.2295235,18.304,18.301,10.03382191]
[1688208385855,121.2295235,18.304,18.3,0.78859709]
[1688208387366,0.7895235,18.304,18.3,0.78859709]
[1688208388458,0.7895235,18.304,18.301,10.03367755]
[1688208389758,0.7895235,18.304,18.3,0.78859709]
[1688208390649,0.7895235,18.304,18.29,252.30082821]
[1688208390650,120.44,18.302,18.29,200.0]
[1688208390853,481.76,18.311,18.291,156.82795698]
[1688208391062,481.76,18.311,18.288,58.6548]
[1688208391063,120.44,18.3,18.288,58.6548]
[1688208391360,120.44,18.3,18.289,10.03741084]
[1688208391557,119.36,18.297,18.289,10.03741084]
[1688208391760,0.84495799,18.295,18.291,0.76942696]
[1688208392064,0.84495799,18.295,18.292,10.03741084]
[1688208396468,0.84495799,18.295,18.291,0.76942696]
[1688208406173,119.36,18.293,18.282,54.2852]
[1688208406364,119.36,18.293,18.283,35.19102651]
[1688208406569,120.44,18.295,18.284,10.0400825]
[1688208406777,120.44,18.295,18.285,10.0400825]
[1688208407072,120.44,18.295,18.286,10.0400825]
[1688208407262,0.77486601,18.292,18.289,0.22043374]
[1688208408669,0.77486601,18.292,18.289,10.26051624]
[1688208408873,0.77486601,18.292,18.289,0.22043374]
[1688208409276,0.77486601,18.292,18.283,25.22242]
[1688208409277,120.44,18.29,18.283,25.22242]
[1688208409474,56.8081,18.302,18.272,504.697845]
[1688208409475,200.0,18.282,18.272,504.697845]
[1688208409673,200.0,18.282,18.25,120.44]
[1688208409674,6.75534141,18.281,18.25,120.44]
[1688208409873,200.0,18.272,18.249,54.9221]
[1688208410074,481.76,18.265,18.249,54.9221]
[1688208410270,481.76,18.265,18.241,200.0]
[1688208410271,120.44,18.256,18.241,200.0]
[1688208410478,0.89555028,18.25,18.242,10.06409455]
[1688208410780,120.44,18.256,18.242,10.06409455]
[1688208411580,120.44,18.256,18.243,10.06409455]
[1688208411877,0.74682608,18.251,18.248,0.79640797]
[1688208413678,27.36577,18.271,18.248,0.79640797]
[1688208413679,119.36,18.267,18.251,200.0]
[1688208413877,120.44,18.269,18.255,120.44]
[1688208414784,0.84008797,18.264,18.26,0.80010579]
[1688208414984,0.75885087,18.264,18.26,0.89316578]
[1688208415979,120.44,18.272,18.261,200.0]
[1688208416988,0.77874055,18.268,18.265,0.8877526]
[1688208419095,120.44,18.274,18.265,0.8877526]
[1688208419994,0.81461651,18.271,18.265,0.8877526]
[1688208432101,57.6595,18.284,18.265,0.8877526]
[1688208432102,120.44,18.279,18.266,120.44]
[1688208432905,120.44,18.276,18.262,120.44]
[1688208433201,0.7742888,18.271,18.267,0.80468801]
[1688208433402,0.81330179,18.271,18.267,0.74566891]
[1688208434403,120.44,18.27,18.267,0.74566891]
[1688208437699,0.81330179,18.271,18.267,0.74566891]
[1688208438106,120.44,18.276,18.267,0.74566891]
[1688208439211,0.66227567,18.273,18.267,0.74566891]
[1688208442107,120.44,18.271,18.267,0.74566891]
[1688208444709,120.44,18.269,18.267,0.74566891]
[1688208444901,120.44,18.269,18.256,147.78923934]
[1688208445408,120.44,18.263,18.251,200.0]
[1688208445715,120.44,18.26,18.251,200.0]
[1688208445907,0.8381381,18.259,18.256,0.81521551]
[1688208446603,120.44,18.258,18.256,0.81521551]
[1688208448302,481.76,18.257,18.243,58.9388]
[1688208448499,120.44,18.253,18.243,58.9388]
[1688208448809,119.4,18.257,18.243,179.2588]
[1688208449008,119.4,18.257,18.246,119.81]
[1688208449311,0.83933196,18.253,18.25,0.87857587]
[1688208449912,121.27933196,18.253,18.25,0.87857587]
[1688208450212,120.44,18.251,18.233,120.32]
[1688208450413,120.44,18.244,18.234,10.06737769]
[1688208450605,120.44,18.244,18.232,10.06737769]
[1688208450801,120.44,18.244,18.233,10.06737769]
[1688208451313,120.44,18.249,18.237,0.79778601]
[1688208451513,120.44,18.249,18.235,120.32]
[1688208451706,120.44,18.249,18.236,10.06663578]
[1688208452409,0.89660077,18.244,18.241,0.78945958]
[1688208452601,0.90413893,18.244,18.241,0.78289945]
[1688208453114,120.44,18.247,18.241,0.78289945]
[1688208453115,120.44,18.25,18.241,0.78289945]
[1688208453308,120.44,18.25,18.235,120.32]
[1688208453511,120.44,18.25,18.236,10.06675439]
[1688208454209,480.91,18.257,18.241,0.7960623]
[1688208454210,120.44,18.252,18.241,0.7960623]
[1688208454406,119.36,18.255,18.242,10.06675439]
[1688208454612,54.56,18.284,18.235,120.44]
[1688208454613,120.44,18.248,18.235,120.44]
[1688208454803,120.44,18.248,18.236,10.06685535]
[1688208455309,0.58100985,18.244,18.24,0.89430736]
[1688208455514,120.44,18.251,18.241,200.0]
[1688208455710,119.36,18.254,18.242,10.06391925]
[1688208456013,481.76,18.257,18.233,27.87559234]
[1688208456310,120.44,18.248,18.234,130.50576889]
[1688208456517,120.44,18.248,18.239,0.88449054]
[1688208456815,120.44,18.245,18.239,0.88449054]
[1688208457111,120.44,18.245,18.24,0.8844075]
[1688208457310,120.44,18.245,18.241,0.78668078]
[1688208458408,120.25,18.249,18.237,120.44]
[1688208459516,0.78653053,18.245,18.241,0.78916948]
[1688208462506,0.78653053,18.245,18.241,200.78916948]
[1688208462717,120.44,18.253,18.241,200.78916948]
[1688208462917,120.44,18.253,18.241,200.0]
[1688208463715,120.44,18.253,18.245,0.87643569]
[1688208464321,120.03,18.257,18.245,0.87643569]
[1688208464518,120.03,18.257,18.249,0.85697237]
[1688208464815,120.03,18.257,18.251,0.77628625]
[1688208468718,120.03,18.257,18.242,56.2268]
[1688208468719,120.44,18.252,18.242,56.2268]
[1688208468921,120.44,18.252,18.243,10.06379647]
[1688208469124,120.44,18.254,18.243,10.06379647]
[1688208469509,120.44,18.254,18.244,10.06379647]
[1688208469718,0.77538513,18.251,18.247,0.88661532]
[1688208472327,120.44,18.257,18.247,0.88661532]
[1688208475019,120.44,18.252,18.247,0.88661532]
[1688208475524,482.4,18.257,18.247,0.88661532]
[1688208475525,120.44,18.249,18.247,0.88661532]
[1688208475715,120.44,18.249,18.236,147.61122999]
[1688208475716,120.44,18.249,18.236,27.17122999]
[1688208475915,120.44,18.246,18.237,10.06696077]
[1688208476126,120.44,18.252,18.238,119.81]
[1688208476627,0.75972373,18.247,18.243,0.7892713]
[1688208477125,58.6932,18.264,18.243,0.7892713]
[1688208477126,120.44,18.254,18.243,0.7892713]
[1688208477327,120.44,18.254,18.241,120.44]
[1688208477627,120.44,18.254,18.242,10.06483667]
[1688208478029,120.44,18.256,18.243,120.44]
[1688208478326,120.44,18.256,18.234,57.586]
[1688208478327,120.44,18.262,18.25,200.0]
[1688208478514,120.44,18.265,18.252,120.44]
[1688208479329,120.44,18.265,18.257,0.74719005]
[1688208481829,120.44,18.267,18.257,0.74719005]
[1688208482028,54.5776,18.269,18.26,0.88043211]
[1688208482236,120.44,18.273,18.26,321.20043211]
[1688208482434,120.44,18.273,18.265,0.83295086]
[1688208483328,120.44,18.268,18.265,0.83295086]
[1688208483528,120.44,18.268,18.251,55.1969]
[1688208483529,120.44,18.266,18.253,120.44]
[1688208484527,0.83122518,18.261,18.258,0.87575251]
[1688208486236,481.76,18.273,18.258,0.87575251]
[1688208486237,119.4,18.273,18.26,200.0]
[1688208487235,119.4,18.273,18.265,0.8430623]
[1688208489536,60.0084,18.279,18.265,0.8430623]
[1688208489724,120.44,18.274,18.27,0.86504999]
[1688208491141,60.0084,18.279,18.228,2191.04676751]
[1688208491142,120.44,18.271,18.255,119.81]
[1688208491436,120.44,18.268,18.255,119.81]
[1688208492137,0.78298882,18.263,18.26,0.83229599]
[1688208493236,120.44,18.274,18.261,120.44]
[1688208493432,120.44,18.277,18.264,119.81]
[1688208494033,120.44,18.277,18.269,0.81896005]
[1688208496139,60.0084,18.279,18.269,0.81896005]
[1688208496936,120.44,18.277,18.269,0.81896005]
[1688208498946,120.44,18.274,18.269,0.81896005]
[1688208499147,119.36,18.271,18.269,0.81896005]
[1688208499442,119.36,18.271,18.255,119.66]
[1688208499645,119.36,18.268,18.255,119.66]
[1688208500346,0.81671355,18.263,18.26,0.89671167]
[1688208500546,119.4,18.273,18.26,0.89671167]
[1688208500747,119.4,18.273,18.259,119.81]
[1688208501247,119.4,18.273,18.261,120.32]
[1688208501543,120.44,18.277,18.265,120.51162831]
[1688208501751,120.44,18.277,18.269,0.87283271]
[1688208506158,120.44,18.281,18.269,0.87283271]
[1688208506454,119.36,18.284,18.273,0.86473446]
[1688208506648,119.36,18.284,18.277,0.74369549]
[1688208507750,120.44,18.281,18.277,0.74369549]
[1688208508448,120.44,18.278,18.263,120.44]
[1688208509346,120.44,18.273,18.261,54.2711]
[1688208509547,0.74646634,18.269,18.265,0.80152514]
[1688208509851,120.44,18.268,18.255,120.44]
[1688208510844,0.83067361,18.263,18.26,0.7406279]
[1688208516659,120.44,18.261,18.26,0.7406279]
[1688208518361,0.83067361,18.263,18.26,0.7406279]
[1688208519663,120.44,18.262,18.26,0.7406279]
[1688208520060,120.44,18.262,18.251,56.1033]
[1688208520260,120.44,18.262,18.249,320.44]
[1688208520460,120.44,18.264,18.251,119.81]
[1688208521062,0.88157384,18.259,18.256,0.9022628]
[1688208526371,120.44,18.266,18.256,0.9022628]
[1688208526567,120.44,18.266,18.253,120.44]
[1688208527470,0.83802118,18.261,18.258,0.82316226]
[1688208529275,120.44,18.268,18.258,0.82316226]
[1688208529477,120.44,18.268,18.256,120.32]
[1688208529774,57.867,18.277,18.259,320.44]
[1688208529775,120.44,18.271,18.259,320.44]
[1688208530274,0.56932408,18.267,18.259,320.44]
[1688208530468,0.56932408,18.267,18.263,0.80842551]
[1688208530977,120.44,18.275,18.263,0.80842551]
[1688208531274,120.44,18.279,18.265,120.32]
[1688208531863,120.44,18.279,18.27,0.73959327]
[1688208532568,120.44,18.282,18.27,0.73959327]
[1688208532769,179.6238,18.285,18.274,0.83364481]
[1688208533071,120.44,18.285,18.278,0.76662471]
[1688208536474,120.44,18.282,18.278,0.76662471]
[1688208536668,120.44,18.282,18.278,0.90150674]
[1688208538574,120.44,18.279,18.27,59.0664]
[1688208539280,120.44,18.279,18.266,120.44]
[1688208539476,0.88375089,18.274,18.271,0.75386119]
[1688208542983,120.44,18.272,18.263,56.2521]
[1688208543181,120.44,18.269,18.259,200.0]
[1688208543381,120.44,18.271,18.26,69.67201065]
[1688208543580,120.44,18.271,18.26,59.6169]
[1688208543782,120.44,18.271,18.261,10.05507983]
[1688208543978,0.84222793,18.268,18.264,0.84350491]
[1688208547095,119.36,18.279,18.266,120.44]
[1688208547283,120.44,18.282,18.269,119.66]
[1688208547590,96.12793099,18.281,18.269,119.66]
[1688208547987,0.81164206,18.277,18.273,0.84843495]
[1688208548389,120.44,18.285,18.273,0.84843495]
[1688208548595,120.44,18.285,18.272,120.44]
[1688208549293,120.44,18.285,18.277,0.78682096]
[1688208553496,481.76,18.296,18.277,0.78682096]
[1688208553497,120.44,18.287,18.277,0.78682096]
[1688208553685,120.44,18.287,18.28,0.74440862]
[1688208555296,96.15983361,18.286,18.28,0.74440862]
[1688208555494,120.44,18.287,18.28,0.74440862]
[1688208555696,96.15978066,18.286,18.28,0.74440862]
[1688208559194,120.44,18.284,18.28,0.74440862]
[1688208561196,120.44,18.287,18.28,0.74440862]
[1688208561401,96.15982328,18.286,18.28,0.74440862]
[1688208561598,120.44,18.284,18.28,0.74440862]
[1688208562597,58.3119,18.295,18.27,86.44559093]
[1688208562598,0.74403439,18.279,18.27,59.3614]
[1688208562801,120.44,18.276,18.263,120.44]
[1688208563704,0.74523228,18.271,18.268,0.86187509]
[1688208565601,120.44,18.278,18.268,0.86187509]
[1688208565798,120.44,18.281,18.268,119.66]
[1688208566204,119.36,18.283,18.271,119.66]
[1688208566606,59.774,18.287,18.275,0.89471117]
[1688208566806,59.774,18.287,18.279,0.82690286]
[1688208568103,119.4,18.288,18.279,0.82690286]
[1688208568303,120.44,18.29,18.279,0.82690286]
[1688208568505,96.25198639,18.289,18.283,0.76996738]
[1688208575712,119.36,18.293,18.283,0.76996738]
[1688208576007,55.6322,18.295,18.286,0.7914536]
[1688208576205,96.49589846,18.294,18.286,0.7914536]
[1688208576407,120.44,18.296,18.286,0.7914536]
[1688208576711,96.49537903,18.295,18.286,0.7914536]
[1688208579312,120.44,18.296,18.286,0.7914536]
[1688208580909,120.44,18.294,18.286,0.7914536]
[1688208581103,120.44,18.294,18.288,0.86076695]
[1688208582614,120.44,18.292,18.288,0.86076695]
[1688208582807,120.44,18.292,18.288,0.7742785]
[1688208583004,119.36,18.289,18.288,0.7742785]
[1688208583212,0.75707339,18.287,18.276,120.32]
[1688208583406,119.36,18.289,18.276,120.32]
[1688208583407,55.3699,18.288,18.276,120.32]
[1688208584107,0.76481374,18.284,18.28,0.81593256]
[1688208586112,120.44,18.283,18.27,120.44]
[1688208587121,0.75269912,18.278,18.275,0.75729521]
[1688208593424,120.44,18.286,18.273,120.44]
[1688208594029,55.3699,18.288,18.272,26.91869795]
[1688208594030,119.36,18.282,18.272,26.91869795]
[1688208594229,120.44,18.279,18.265,57.6139]
[1688208594524,0.83713749,18.274,18.27,0.76353973]
[1688208598424,120.44,18.285,18.272,119.81]
[1688208598628,96.38395193,18.284,18.272,119.81]
[1688208599425,96.38395193,18.284,18.276,0.75416459]
[1688208599830,120.44,18.287,18.276,0.75416459]
[1688208600130,96.41623993,18.286,18.28,0.74257426]
[1688208600725,120.44,18.285,18.28,0.74257426]
[1688208601927,120.44,18.287,18.28,0.74257426]
[1688208602125,96.41282253,18.286,18.28,0.74257426]
[1688208606033,55.3699,18.288,18.28,0.74257426]
[1688208606234,120.44,18.293,18.28,121.18257426]
[1688208606435,120.44,18.295,18.285,0.86036541]
[1688208606642,120.44,18.298,18.288,0.75651123]
[1688208606842,120.44,18.298,18.291,0.77539539]
[1688208607037,120.44,18.296,18.293,0.83942068]
[1688208607242,120.44,18.296,18.293,0.80983804]
[1688208611044,120.44,18.294,18.279,58.1494]
[1688208611244,120.44,18.29,18.279,58.1494]
[1688208611643,120.44,18.286,18.272,120.86]
[1688208611845,120.44,18.284,18.272,120.86]
[1688208612043,0.7414444,18.28,18.276,0.84987672]
[1688208621453,179.9338,18.287,18.275,120.44]
[1688208622050,120.44,18.287,18.275,120.44]
[1688208622252,0.06704646,18.283,18.279,0.83043469]
[1688208622855,119.36,18.293,18.281,120.44]
[1688208623653,119.36,18.293,18.285,0.77382181]
[1688208636459,120.44,18.296,18.285,0.77382181]
[1688208636669,120.44,18.296,18.289,0.78327327]
[1688208640376,120.44,18.294,18.289,0.78327327]
[1688208640579,120.44,18.294,18.29,0.83066125]
[1688208640769,120.44,18.294,18.29,0.85201141]
[1688208642673,119.36,18.291,18.29,0.85201141]
[1688208642878,119.36,18.291,18.279,27.55545992]
[1688208643077,59.4274,18.29,18.278,120.44]
[1688208643279,119.36,18.291,18.278,120.44]
[1688208643983,0.75689995,18.286,18.283,0.7546578]
[1688208644769,239.6,18.284,18.262,25.1633353]
[1688208644972,120.44,18.272,18.261,59.2007]
[1688208645173,120.44,18.279,18.265,120.44]
[1688208645378,119.36,18.276,18.263,120.44]
[1688208645876,0.76606721,18.271,18.268,0.89034106]
[1688208647179,120.44,18.279,18.266,120.32]
[1688208648184,0.74728639,18.274,18.271,0.87745093]